[Event "Snabbschacks-KM 2025"]
[Site "Linköping, Sweden"]
[Date "2025.05.06"]
[Round "3.7"]
[White "Gustafsson, Nils"]
[Black "Davidsson, Asker"]
[Result "*"]
[TimeControl "15 min + 5 sek"]
[WhiteElo "1861"]
[BlackElo "1796"]

1. e4 {[%clk 00:15:08]} {[%emt 00:00:01]} d5 {[%clk 00:15:08]} {[%emt
00:00:03]} 2. exd5 {[%clk 00:15:12]} {[%emt 00:00:01]} Qxd5 {[%clk 00:15:11]}
{[%emt 00:00:01]} 3. Nc3 {[%clk 00:15:15]} {[%emt 00:00:02]} Qa5 {[%clk
00:15:14]} {[%emt 00:00:02]} 4. Nf3 {[%clk 00:15:19]} {[%emt 00:00:01]} c6
{[%clk 00:14:56]} {[%emt 00:00:23]} 5. d4 {[%clk 00:15:13]} {[%emt 00:00:11]}
Nf6 {[%clk 00:14:57]} {[%emt 00:00:04]} 6. Bc4 {[%clk 00:15:01]} {[%emt
00:00:17]} Bf5 {[%clk 00:14:56]} {[%emt 00:00:05]} 7. O-O {[%clk 00:14:29]}
{[%emt 00:00:37]} e6 {[%clk 00:14:53]} {[%emt 00:00:08]} 8. Bf4 {[%clk
00:13:34]} {[%emt 00:00:59]} Bb4 {[%clk 00:13:31]} {[%emt 00:01:26]} 9. Ne2
{[%clk 00:13:17]} {[%emt 00:00:23]} O-O {[%clk 00:13:27]} {[%emt 00:00:10]} 10.
c3 {[%clk 00:12:41]} {[%emt 00:00:40]} Be7 {[%clk 00:13:29]} {[%emt 00:00:02]}
11. Ng3 {[%clk 00:11:52]} {[%emt 00:00:55]} Bg6 {[%clk 00:13:03]} {[%emt
00:00:32]} 12. Ne5 {[%clk 00:10:33]} {[%emt 00:01:24]} Nbd7 {[%clk 00:12:41]}
{[%emt 00:00:26]} 13. Nxg6 {[%clk 00:09:05]} {[%emt 00:01:34]} hxg6 {[%clk
00:12:45]} {[%emt 00:00:01]} 14. Qe2 {[%clk 00:08:45]} {[%emt 00:00:26]} Nd5
{[%clk 00:12:06]} {[%emt 00:00:44]} 15. Bd2 {[%clk 00:07:59]} {[%emt 00:00:51]}
Qc7 {[%clk 00:11:19]} {[%emt 00:00:50]} 16. h3 {[%clk 00:06:51]} {[%emt
00:01:14]} N7f6 {[%clk 00:10:58]} {[%emt 00:00:26]} 17. Ne4 {[%clk 00:06:25]}
{[%emt 00:00:30]} Nxe4 {[%clk 00:10:44]} {[%emt 00:00:20]} 18. Qxe4 {[%clk
00:06:26]} {[%emt 00:00:04]} Bd6 {[%clk 00:09:58]} {[%emt 00:00:51]} 19. Rad1
{[%clk 00:05:03]} {[%emt 00:01:28]} Rfd8 {[%clk 00:07:48]} {[%emt 00:02:14]} 20.
Qf3 {[%clk 00:04:52]} {[%emt 00:00:17]} b5 {[%clk 00:07:14]} {[%emt 00:00:39]}
21. Bb3 {[%clk 00:03:49]} {[%emt 00:01:08]} a5 {[%clk 00:06:33]} {[%emt
00:00:46]} 22. Bc2 {[%clk 00:03:22]} {[%emt 00:00:33]} Ne7 {[%clk 00:05:43]}
{[%emt 00:00:55]} 23. Be3 {[%clk 00:02:39]} {[%emt 00:00:48]} Nd5 {[%clk
00:05:36]} {[%emt 00:00:12]} 24. Rfe1 {[%clk 00:02:22]} {[%emt 00:00:22]} Bf4
{[%clk 00:04:41]} {[%emt 00:01:00]} 25. Bxf4 {[%clk 00:02:07]} {[%emt
00:00:20]} Qxf4 {[%clk 00:04:43]} {[%emt 00:00:02]} 26. Qxf4 {[%clk 00:02:06]}
{[%emt 00:00:06]} Nxf4 {[%clk 00:04:46]} {[%emt 00:00:02]} 27. Kf1 {[%clk
00:02:04]} {[%emt 00:00:08]} a4 {[%clk 00:04:29]} {[%emt 00:00:21]} 28. Re4
{[%clk 00:01:58]} {[%emt 00:00:11]} Nd5 {[%clk 00:04:04]} {[%emt 00:01:00]} 29.
Rd3 {[%clk 00:01:42]} b4 {[%clk 00:03:02]} {[%emt 00:00:57]} 30. c4 {[%emt
00:00:35]} Nf6 {[%clk 00:02:28]} {[%emt 00:00:38]} 31. Re1 {[%clk 00:01:09]}
{[%emt 00:00:10]} Rdb8 {[%clk 00:01:52]} {[%emt 00:00:41]} 32. Bd1 {[%clk
00:01:09]} {[%emt 00:00:06]} a3 {[%clk 00:01:34]} {[%emt 00:00:23]} 33. b3
{[%clk 00:01:13]} {[%emt 00:00:01]} Rd8 {[%clk 00:01:31]} {[%emt 00:00:07]} 34.
Bf3 {[%clk 00:01:15]} {[%emt 00:00:03]} Rac8 {[%clk 00:01:34]} {[%emt
00:00:01]} 35. Red1 {[%clk 00:01:18]} {[%emt 00:00:03]} Kf8 {[%clk 00:01:14]}
{[%emt 00:00:25]} 36. Ke2 {[%clk 00:01:20]} {[%emt 00:00:03]} Ke7 {[%clk
00:01:19]} 37. Ke3 {[%clk 00:01:24]} Rd6 {[%clk 00:01:08]} {[%emt 00:00:16]} 38.
d5 {[%clk 00:01:10]} {[%emt 00:00:19]} cxd5 {[%clk 00:01:02]} {[%emt 00:00:11]}
39. cxd5 {[%clk 00:01:14]} Nxd5+ {[%clk 00:00:46]} {[%emt 00:00:22]} 40. Bxd5
{[%clk 00:01:17]} {[%emt 00:00:02]} Rxd5 {[%clk 00:00:41]} {[%emt 00:00:10]} 41.
Rxd5 {[%clk 00:01:15]} {[%emt 00:00:06]} exd5 {[%clk 00:00:44]} {[%emt
00:00:02]} 42. Rxd5 {[%clk 00:01:19]} Rc2 {[%clk 00:00:41]} {[%emt 00:00:08]}
43. Rd2 {[%clk 00:01:20]} {[%emt 00:00:05]} Rxd2 {[%clk 00:00:31]} {[%emt
00:00:15]} 44. Kxd2 {[%clk 00:01:24]} Kd6 {[%clk 00:00:34]} {[%emt 00:00:01]}
45. Ke3 {[%clk 00:01:25]} {[%emt 00:00:04]} Ke5 {[%clk 00:00:27]} {[%emt
00:00:13]} 46. h4 {[%clk 00:01:21]} {[%emt 00:00:09]} f6 {[%clk 00:00:20]}
{[%emt 00:00:12]} 47. g4 {[%clk 00:01:19]} {[%emt 00:00:06]} g5 {[%clk
00:00:09]} {[%emt 00:00:16]} 48. h5 {[%emt 00:00:30]} Kd5 {[%emt 00:00:02]} 49.
Kd3 {[%emt 00:00:16]} Ke5 {[%emt 00:00:14]} 50. Kc4 {[%emt 00:00:01]} Kf4
{[%emt 00:00:03]} 51. Kxb4 {[%emt 00:00:01]} Kxg4 {[%emt 00:00:01]} 52. Kxa3
{[%emt 00:00:06]} Kf3 53. b4 Kxf2 {[%emt 00:00:04]} 54. b5 g4 55. b6 {[%emt
00:00:03]} g3 {[%emt 00:00:01]} 56. b7 g2 57. b8=Q {[%emt 00:00:02]} g1=Q
{[%emt 00:00:01]} *

[Event "Snabbschacks-KM 2025"]
[Site "Linköping, Sweden"]
[Date "2025.05.06"]
[Round "3.8"]
[White "Skytt, Klas"]
[Black "Andersson, Fredrik 1969"]
[Result "0-1"]
[TimeControl "15 min + 5 sek"]
[WhiteElo "1705"]
[BlackElo "1754"]

1. d4 {[%clk 00:15:06]} {[%emt 00:00:03]} d5 {[%clk 00:15:08]} {[%emt
00:00:02]} 2. c4 {[%clk 00:15:09]} {[%emt 00:00:02]} e6 {[%clk 00:15:11]}
{[%emt 00:00:02]} 3. Nc3 {[%clk 00:15:08]} {[%emt 00:00:06]} Nf6 {[%clk
00:15:07]} {[%emt 00:00:10]} 4. Bg5 {[%clk 00:15:01]} {[%emt 00:00:12]} c6
{[%clk 00:14:52]} {[%emt 00:00:19]} 5. e3 {[%clk 00:14:30]} {[%emt 00:00:36]}
Nbd7 {[%clk 00:14:52]} {[%emt 00:00:05]} 6. Nf3 {[%clk 00:14:29]} {[%emt
00:00:07]} Qa5 {[%clk 00:14:53]} {[%emt 00:00:03]} 7. Nd2 {[%clk 00:14:10]}
{[%emt 00:00:24]} Bb4 {[%clk 00:14:21]} {[%emt 00:00:37]} 8. Qc2 {[%clk
00:13:48]} {[%emt 00:00:28]} dxc4 {[%clk 00:14:10]} {[%emt 00:00:15]} 9. Bxc4
{[%clk 00:13:47]} {[%emt 00:00:05]} Qxg5 {[%clk 00:14:12]} {[%emt 00:00:03]} 10.
O-O {[%clk 00:13:28]} {[%emt 00:00:25]} O-O {[%clk 00:14:06]} {[%emt 00:00:10]}
11. Nf3 {[%clk 00:12:56]} {[%emt 00:00:37]} Qh6 {[%clk 00:13:24]} {[%emt
00:00:48]} 12. Ne2 {[%clk 00:11:28]} {[%emt 00:01:33]} c5 {[%clk 00:13:03]}
{[%emt 00:00:26]} 13. a3 {[%clk 00:11:09]} {[%emt 00:00:23]} Ba5 {[%clk
00:12:50]} {[%emt 00:00:19]} 14. dxc5 {[%clk 00:11:06]} {[%emt 00:00:06]} Bc7
{[%clk 00:12:09]} {[%emt 00:00:48]} 15. b4 {[%clk 00:11:03]} {[%emt 00:00:07]}
Ne5 {[%clk 00:11:56]} {[%emt 00:00:19]} 16. Ned4 {[%clk 00:09:34]} {[%emt
00:01:34]} Nxc4 {[%clk 00:10:46]} {[%emt 00:01:14]} 17. Qxc4 {[%clk 00:09:24]}
{[%emt 00:00:15]} a6 {[%clk 00:10:03]} {[%emt 00:00:49]} 18. h3 {[%clk
00:08:39]} {[%emt 00:00:51]} e5 {[%clk 00:09:48]} {[%emt 00:00:19]} 19. Ne2
{[%clk 00:08:06]} {[%emt 00:00:37]} e4 {[%clk 00:08:22]} {[%emt 00:01:32]} 20.
Nd2 {[%clk 00:07:12]} {[%emt 00:00:59]} Qg6 {[%clk 00:08:06]} {[%emt 00:00:21]}
21. Rad1 {[%clk 00:05:39]} {[%emt 00:01:38]} Bxh3 {[%clk 00:07:58]} {[%emt
00:00:14]} 22. Ng3 {[%clk 00:04:33]} {[%emt 00:01:10]} Bxg3 {[%clk 00:07:45]}
{[%emt 00:00:18]} 23. fxg3 {[%clk 00:04:00]} {[%emt 00:00:39]} Qxg3 {[%clk
00:07:39]} {[%emt 00:00:11]} 24. Qe2 {[%clk 00:03:33]} {[%emt 00:00:30]} Ng4
{[%clk 00:07:21]} {[%emt 00:00:24]} 25. Nf3 {[%clk 00:00:29]} {[%emt 00:03:09]}
exf3 {[%clk 00:07:24]} {[%emt 00:00:02]} 26. Rxf3 {[%clk 00:00:27]} {[%emt
00:00:07]} Qh2+ {[%clk 00:07:24]} {[%emt 00:00:05]} 27. Kf1 {[%clk 00:00:29]}
{[%emt 00:00:03]} Qh1# {[%clk 00:07:27]} {[%emt 00:00:02]} 0-1

[Event "Snabbschacks-KM 2025"]
[Site "Linköping, Sweden"]
[Date "2025.05.06"]
[Round "3.10"]
[White "Zoupounidis, Christos"]
[Black "Larsson, Elin"]
[Result "*"]
[TimeControl "15 min + 5 sek"]
[WhiteElo "1604"]
[BlackElo "1783"]

1. e4 {[%clk 00:15:08]} {[%emt 00:00:01]} c5 {[%clk 00:15:09]} {[%emt
00:00:02]} 2. Nf3 {[%clk 00:15:11]} {[%emt 00:00:02]} d6 {[%clk 00:15:09]}
{[%emt 00:00:05]} 3. Bb5+ {[%clk 00:15:14]} {[%emt 00:00:01]} Bd7 {[%clk
00:14:55]} {[%emt 00:00:19]} 4. Bxd7+ {[%clk 00:15:17]} {[%emt 00:00:02]} Qxd7
{[%clk 00:14:57]} {[%emt 00:00:03]} 5. d4 {[%clk 00:15:21]} {[%emt 00:00:02]}
cxd4 {[%clk 00:14:56]} {[%emt 00:00:06]} 6. Nxd4 {[%clk 00:15:24]} {[%emt
00:00:02]} Nf6 {[%clk 00:14:35]} {[%emt 00:00:26]} 7. Nc3 {[%clk 00:15:27]}
{[%emt 00:00:02]} g6 {[%clk 00:14:18]} {[%emt 00:00:23]} 8. Be3 {[%clk
00:15:07]} {[%emt 00:00:24]} Bg7 {[%clk 00:14:10]} {[%emt 00:00:13]} 9. Qd2
{[%clk 00:15:11]} {[%emt 00:00:01]} Nc6 {[%clk 00:14:08]} {[%emt 00:00:08]} 10.
Nxc6 {[%clk 00:15:12]} {[%emt 00:00:04]} bxc6 {[%clk 00:13:38]} {[%emt
00:00:35]} 11. f3 {[%clk 00:14:42]} {[%emt 00:00:35]} Rb8 {[%clk 00:13:15]}
{[%emt 00:00:28]} 12. Rb1 {[%clk 00:14:45]} {[%emt 00:00:01]} Qc7 {[%clk
00:11:36]} {[%emt 00:01:45]} 13. h4 {[%clk 00:13:17]} {[%emt 00:01:33]} h5
{[%clk 00:10:46]} {[%emt 00:00:55]} 14. Kf2 {[%clk 00:13:08]} {[%emt 00:00:14]}
Qa5 {[%clk 00:08:56]} {[%emt 00:01:56]} 15. Rhd1 {[%clk 00:12:02]} {[%emt
00:01:10]} Nd7 {[%clk 00:04:58]} {[%emt 00:04:04]} 16. Bd4 {[%clk 00:11:45]}
{[%emt 00:00:22]} Ne5 {[%clk 00:03:28]} {[%emt 00:01:34]} 17. Kg3 {[%clk
00:11:27]} {[%emt 00:00:23]} c5 {[%clk 00:02:59]} {[%emt 00:00:34]} 18. Bxe5
{[%clk 00:11:21]} {[%emt 00:00:11]} Bxe5+ {[%clk 00:02:56]} {[%emt 00:00:08]}
19. f4 {[%clk 00:11:25]} {[%emt 00:00:01]} Bd4 {[%clk 00:01:52]} {[%emt
00:01:10]} 20. Nd5 {[%clk 00:11:15]} {[%emt 00:00:15]} Qxd2 {[%clk 00:00:41]}
{[%emt 00:01:15]} 21. Rxd2 {[%clk 00:11:18]} {[%emt 00:00:01]} e6 {[%clk
00:00:08]} {[%emt 00:00:38]} 22. c3 {[%clk 00:10:33]} {[%emt 00:00:50]} exd5
{[%clk 00:00:09]} {[%emt 00:00:05]} 23. cxd4 {[%clk 00:10:37]} {[%emt
00:00:01]} dxe4 {[%clk 00:00:08]} {[%emt 00:00:06]} 24. dxc5 {[%clk 00:10:41]}
{[%emt 00:00:01]} dxc5 {[%clk 00:00:07]} {[%emt 00:00:06]} 25. Rd5 {[%clk
00:10:42]} {[%emt 00:00:03]} O-O {[%clk 00:00:06]} {[%emt 00:00:07]} 26. Rxc5
{[%clk 00:10:44]} {[%emt 00:00:03]} Rfe8 {[%clk 00:00:08]} {[%emt 00:00:02]} 27.
b3 {[%clk 00:10:44]} {[%emt 00:00:05]} Rb7 {[%clk 00:00:08]} {[%emt 00:00:05]}
28. f5 {[%clk 00:10:36]} {[%emt 00:00:13]} Rbe7 {[%clk 00:00:08]} {[%emt
00:00:05]} 29. fxg6 {[%clk 00:10:37]} {[%emt 00:00:04]} fxg6 {[%clk 00:00:12]}
{[%emt 00:00:01]} 30. Rg5 {[%clk 00:10:39]} {[%emt 00:00:03]} Kh7 {[%clk
00:00:13]} {[%emt 00:00:04]} 31. Kf2 {[%clk 00:10:16]} {[%emt 00:00:28]} Re5
{[%clk 00:00:11]} {[%emt 00:00:06]} 32. Rxe5 {[%clk 00:10:19]} {[%emt
00:00:02]} Rxe5 {[%clk 00:00:16]} {[%emt 00:00:01]} 33. Re1 {[%clk 00:10:23]}
Ra5 {[%clk 00:00:16]} {[%emt 00:00:05]} 34. a4 {[%clk 00:10:25]} {[%emt
00:00:03]} Re5 {[%clk 00:00:07]} {[%emt 00:00:14]} 35. Ke3 {[%clk 00:10:29]}
{[%emt 00:00:01]} Kg7 {[%clk 00:00:06]} {[%emt 00:00:06]} 36. Kd4 {[%clk
00:10:33]} {[%emt 00:00:01]} Re7 {[%clk 00:00:07]} {[%emt 00:00:02]} 37. Rxe4
{[%clk 00:10:35]} {[%emt 00:00:04]} Rb7 {[%clk 00:00:09]} {[%emt 00:00:04]} 38.
Re3 {[%clk 00:10:38]} {[%emt 00:00:02]} Rb4+ {[%clk 00:00:09]} {[%emt
00:00:05]} 39. Kc5 {[%clk 00:10:40]} {[%emt 00:00:03]} Rxh4 {[%clk 00:00:10]}
{[%emt 00:00:04]} 40. Re7+ {[%clk 00:10:44]} Kf6 {[%clk 00:00:14]} {[%emt
00:00:01]} 41. Rxa7 {[%clk 00:10:47]} {[%emt 00:00:02]} Rg4 {[%clk 00:00:08]}
{[%emt 00:00:11]} 42. Ra6+ {[%clk 00:10:50]} {[%emt 00:00:02]} Kf5 {[%clk
00:00:08]} {[%emt 00:00:05]} 43. b4 {[%clk 00:10:43]} {[%emt 00:00:13]} Rxg2
{[%clk 00:00:08]} {[%emt 00:00:06]} 44. b5 {[%clk 00:10:47]} h4 {[%clk
00:00:07]} {[%emt 00:00:05]} 45. b6 {[%clk 00:10:51]} h3 {[%clk 00:00:08]}
{[%emt 00:00:04]} 46. b7 {[%clk 00:10:55]} h2 {[%clk 00:00:06]} {[%emt
00:00:06]} 47. b8=Q {[%clk 00:10:51]} {[%emt 00:00:09]} h1=Q {[%clk 00:00:08]}
{[%emt 00:00:03]} 48. Ra5 {[%clk 00:10:02]} {[%emt 00:00:54]} Rc2+ {[%clk
00:00:08]} {[%emt 00:00:05]} 49. Kd6+ {[%clk 00:10:04]} {[%emt 00:00:02]} Kf6
{[%clk 00:00:07]} {[%emt 00:00:06]} 50. Qf8 {[%clk 00:09:56]} {[%emt 00:01:01]}
*